Workbook

Sheet Relatório Liquidação
X1: -4.183675628e-11
E2: CRI Jardins da Lagoa - Mapa de Liquidação
B7: Natureza do Pagamento | C7: Série | D7: Data | E7: PU Liquidação | F7: Quantidade | G7: Lançamento | H7: Razão Social | I7: CNPJ | J7: Número | K7: Banco | L7: Agência | M7: Conta | N7: ISS | O7: Valor do Serviço | P7: Gross-Up | Q7: Valor Bruto NF | R7: Retenção NF | S7: Retenção | T7: Valor | U7: Observação | V7: Enviado para pagamento
B8: Integralização | C8: 527 | D8: 2021-04-09 | E8: 1000 | F8: 1200 | G8: Integralização | T8: =E8*F8 -> 1200000 | W8: SIM
B9: Integralização | C9: 528 | D9: 2021-04-09 | E9: 1000 | F9: 800 | G9: Integralização | T9: =E9*F9 -> 800000 | W9: SIM (PAGO)
B10: Integralização | C10: 529 | D10: 2021-04-09 | E10: 1000 | F10: 0 | G10: Integralização | T10: 0
B11: Integralização | C11: 530 | D11: 2021-04-09 | E11: 1000 | F11: 0 | G11: Integralização | T11: 0
B12: Integralização | C12: 0 | D12: 2021-04-09 | E12: 0 | F12: 0 | G12: Integralização | T12: 0
B13: Integralização | C13: 0 | D13: 2021-04-09 | E13: 0 | F13: 0 | G13: Integralização | T13: 0
B14: Integralização | C14: Total Dia | G14: Total Integralização | T14: =SUM(T8:T13) -> 2000000 | W14: SIM (PAGO PARCIALMENTE - Saldo restante: Valor)
B15: Transferência | G15: Fee Estruturação | H15: FORTE SECURITIZACAO E PARTICIPACOES LTDA | I15: 21.567.223/0001-05 | J15: 341 | K15: Itaú Unibanco S.A. | L15: 0869-8 | M15: 12663-1 | N15: N/A | O15: 80000 | P15: 0.1115 | Q15: =O15/(1-P15) -> 90039.39223 | R15: 0.0615 | S15: =R15*Q15 -> 5537.422622 | T15: =Q15*(1-R15) -> 84501.96961
B16: Transferência | G16: Taxa de Sucesso | H16: FORTE SECURITIZACAO E PARTICIPACOES LTDA | I16: 21.567.223/0001-05 | J16: 341 | K16: Itaú Unibanco S.A. | L16: 0869-8 | M16: 12663-1 | N16: N/A | O16: 80000 | P16: 0.1115 | Q16: =O16/(1-P16) -> 90039.39223 | R16: 0.0615 | S16: =R16*Q16 -> 5537.422622 | T16: =Q16*(1-R16) -> 84501.96961
B17: Transferência | G17: Comissão Firme | H17: TForte Participação Ltda | I17: 21.567.223/0001-05 | J17: 341 | K17: Itaú Unibanco S.A. | L17: 0869-8 | M17: 12663-1 | N17: N/A | O17: 0 | P17: 0.1115 | Q17: 0 | R17: 0.0615 | S17: 0 | T17: 0
B18: Transferência | G18: Originador | H18: - | I18: - | L18: - | M18: - | O18: 0 | P18: 0 | Q18: 0 | R18: 0 | S18: 0 | T18: 0
B19: Aguardar Transferência | G19: Advogados - Terceiros | O19: 0 | P19: 0 | Q19: 0 | R19: 0 | S19: 0 | T19: 0
B20: Aguardar Transferência | G20: Companhia Hipotecária | H20: COMPANHIA HIPOTECÁRIA PIRATINI | I20: 18.282.093/0001-50 | J20: 237 | K20: Banco Bradesco S.A. | L20: 3145 | M20: 21476-0 | N20: N/A | O20: 0 | P20: 0.0965 | Q20: 0 | R20: 0.0615 | S20: 0 | T20: 0
B21: Aguardar Transferência | G21: Advogados - Assessoria | H21: MANASSERO E CAMPELLO SOCIEDADE DE ADVOGADOS | I21: 19.010.359/0001-78 | J21: 341 | K21: Itaú Unibanco S.A. | L21: 0445 | M21: 45155-2 | N21: N/A | O21: 48328.87 | P21: 0 | Q21: 48328.87 | R21: 0.0615 | S21: 2972.225505 | T21: 45356.6445 | V21: SIM
B22: Aguardar Transferência | G22: Coordenador Líder | H22: TERRA INVESTIMENTOS DTVM LTDA. | I22: 03.751.794/0001-13 | J22: 237 | K22: Banco Bradesco S.A. | L22: 560 | M22: 0156021-2 | N22: N/A | O22: 12625 | P22: 0.0965 | Q22: 13973.43664 | R22: 0 | S22: 0 | T22: 13973.43664 | V22: SIM
B23: Aguardar Transferência | G23: Engenharia | H23: HARCA ENGENHARIA EIRELI - ME | I23: 20.620.442/0001-48 | J23: 003 | K23: Caixa Econômica Federal | L23: 1959 | M23: 00000620-5 | N23: SIM | O23: 5000 | P23: 0 | Q23: 5000 | R23: 0 | S23: 0 | T23: 5000 | V23: SIM
B24: Aguardar Transferência | G24: Auditoria Complementar | H24: CONVESTE AUDFILES SERVICOS FINANCEIROS LTDA | I24: 29.758.816/0001-60 | J24: 341 | K24: Itaú Unibanco S.A. | L24: 6630 | M24: 43542-5 | N24: N/A | O24: 0 | P24: 0.1115 | Q24: 0 | R24: 0.0615 | S24: 0 | T24: 0
B25: Aguardar Transferência | G25: Auditoria Financeira | H25: CONVESTE AUDFILES SERVICOS FINANCEIROS LTDA | I25: 29.758.816/0001-60 | J25: 341 | K25: Itaú Unibanco S.A. | L25: 6630 | M25: 43542-5 | N25: N/A | O25: 19920 | P25: 0.1115 | Q25: 22419.80867 | R25: 0.0615 | S25: 1378.818233 | T25: 21040.99043 | V25: SIM
B26: Aguardar Transferência | G26: Implantação | H26: CONVESTE AUDFILES SERVICOS FINANCEIROS LTDA | I26: 29.758.816/0001-60 | J26: 341 | K26: Itaú Unibanco S.A. | L26: 6630 | M26: 43542-5 | N26: N/A | O26: 15341 | P26: 0.1115 | Q26: 17266.17895 | R26: 0.0615 | S26: 1061.870006 | T26: 16204.30895 | V26: SIM
B27: Aguardar Transferência | G27: Agente Fiduciário | H27: SIMPLIFIC PAVARINI DISTRIBUIDORA DE TÍTULOS E VALORES MOBILIÁRIOS LTDA. | I27: 15.227.994/0001-50 | J27: 237 | K27: Banco Bradesco S.A. | L27: 3428-2 | M27: 714.443-1 | N27: N/A | O27: 19000 | P27: 0.0965 | Q27: 21029.33038 | R27: 0.0615 | S27: 1293.303818 | T27: 19736.02656 | V27: SIM
B28: Aguardar Transferência | G28: Agente Custodiante | H28: SIMPLIFIC PAVARINI DISTRIBUIDORA DE TÍTULOS E VALORES MOBILIÁRIOS LTDA. | I28: 15.227.994/0001-50 | J28: 237 | K28: Banco Bradesco S.A. | L28: 3428-2 | M28: 714.443-1 | N28: N/A | O28: 3500 | P28: 0.0965 | Q28: 3873.824018 | R28: 0.0615 | S28: 238.2401771 | T28: 3635.583841 | V28: SIM
B29: Aguardar Transferência | G29: Agente Registrador CCI | H29: SIMPLIFIC PAVARINI DISTRIBUIDORA DE TÍTULOS E VALORES MOBILIÁRIOS LTDA. | I29: 15.227.994/0001-50 | J29: 237 | K29: Banco Bradesco S.A. | L29: 3428-2 | M29: 714.443-1 | N29: N/A | O29: 32925 | P29: 0.0965 | Q29: 36441.61594 | R29: 0.0615 | S29: 2241.15938 | T29: 34200.45656 | V29: SIM
B30: Aguardar Transferência | G30: Despachante | H30: Duudocs Serviços Administrativos Ltda | I30: 32.437.359/0001-17 | J30: 341 | K30: Itaú Unibanco S.A. | L30: 0350 | M30: 32511-4 | N30: N/A | O30: 3000 | P30: 0 | Q30: 3000 | R30: 0 | S30: 0 | T30: =Q30*(1-R30) -> 3000
B31: Provisão de Despesas | G31: Registro CCI B3 (Débito Automático) | H31: Forte Securitizadora S/A | I31: 12.979.898/0001-70 | S31: =+R31*Q31 -> 0 | T31: 430
B32: Provisão de Despesas | G32: Registro CRI B3 (Débito Automático) | H32: Forte Securitizadora S/A | I32: 12.979.898/0001-70 | S32: 0 | T32: 5000
B33: Provisão de Despesas | G33: Custos Mov. CRI/CCI B3 (Estimado-Deb. Aut.) | H33: Forte Securitizadora S/A | I33: 12.979.898/0001-70 | S33: 0 | T33: 0
B34: Provisão de Despesas | G34: Análise B3 | H34: Forte Securitizadora S/A | I34: 12.979.898/0001-70 | S34: =+R34*Q34 -> 0 | T34: 0
B35: Provisão de Despesas | G35: Taxa de Registro - Anbima | H35: Forte Securitizadora S/A | I35: 12.979.898/0001-70 | S35: =+R35*Q35 -> 0 | T35: 1568
B36: Provisão de Despesas | G36: Rating | H36: Forte Securitizadora S/A | I36: 12.979.898/0001-70 | S36: =+R36*Q36 -> 0 | T36: ='[2]Criar Mapa'!K25 -> 23450
B37: Provisão de Despesas | G37: IOF | H37: Forte Securitizadora S/A | I37: 12.979.898/0001-70 | S37: =+R37*Q37 -> 0 | T37: ='[2]Criar Mapa'!K26 -> 0
B38: Provisão de Despesas | G38: Provisão Diversa | O38: 0 | P38: 0 | Q38: =O38/(1-P38) -> 0 | R38: 0 | S38: =R38*Q38 -> 0 | T38: =Q38*(1-R38) -> 0
G39: Retenção de Impostos sobre NFs | T39: =SUM(T40:T49) -> 20260.46236
B40: Retenção de Impostos | G40: Imposto - FORTE SECURITIZACAO E PARTICIPACOES LTDA | H40: FORTE SECURITIZACAO E PARTICIPACOES LTDA | I40: 21.567.223/0001-05 | T40: =SUMIF($I$15:$I$38,I40,$S$15:$S$38) -> 11074.84524
B41: Retenção de Impostos | G41: Imposto - Originador | H41: - | I41: - | T41: =SUMIF($I$15:$I$38,I41,$S$15:$S$38) -> 0
B42: Retenção de Impostos | G42: Imposto - Assessor Legal Terceiros | T42: 0
B43: Retenção de Impostos | G43: Imposto - Companhia Hipotecária | H43: COMPANHIA HIPOTECÁRIA PIRATINI | I43: 18.282.093/0001-50 | T43: =SUMIF($I$15:$I$38,I43,$S$15:$S$38) -> 0
B44: Retenção de Impostos | G44: Imposto - Assessor Legal | H44: MANASSERO E CAMPELLO SOCIEDADE DE ADVOGADOS | I44: 19.010.359/0001-78 | T44: =SUMIF($I$15:$I$38,I44,$S$15:$S$38) -> 2972.225505
B45: Retenção de Impostos | G45: Imposto - Coordenador Líder | H45: TERRA INVESTIMENTOS DTVM LTDA. | I45: 03.751.794/0001-13 | T45: =SUMIF($I$15:$I$38,I45,$S$15:$S$38) -> 0
B46: Retenção de Impostos | G46: Imposto - Engenharia | H46: HARCA ENGENHARIA EIRELI - ME | I46: 20.620.442/0001-48 | T46: 0
B47: Retenção de Impostos | G47: Imposto - Auditoria | H47: CONVESTE AUDFILES SERVICOS FINANCEIROS LTDA | I47: 29.758.816/0001-60 | T47: =SUMIF($I$15:$I$38,I47,$S$15:$S$38) -> 2440.688239
B48: Retenção de Impostos | G48: Imposto - Agente Fiduciário | H48: SIMPLIFIC PAVARINI DISTRIBUIDORA DE TÍTULOS E VALORES MOBILIÁRIOS LTDA. | I48: 15.227.994/0001-50 | T48: =SUMIF($I$15:$I$38,I48,$S$15:$S$38) -> 3772.703376 | Y48: Integralização
B49: Retenção de Impostos | G49: Imposto - Agente Custodiante | H49: - | I49: - | T49: 0 | Y49: Integralização
B50: Transferência | G50: Reembolso Despesas | H50: Forte Securitizadora S/A | I50: 12.979.898/0001-70 | J50: 341 | K50: Itaú Unibanco S.A. | L50: 0869 | M50: 13447-8 | T50: 0
B51: Transferência | G51: Retenção de PMT | H51: Forte Securitizadora S/A | I51: 12.979.898/0001-70 | J51: 341 | K51: Itaú Unibanco S.A. | L51: 0393 | M51: 28245-4 | T51: 76193.27
B52: Aguardar Transferência | G52: Quitação de Dividas | H52: Forte Securitizadora S/A | I52: 12.979.898/0001-70 | J52: 341 | K52: Itaú Unibanco S.A. | L52: 0393 | M52: 28245-4
B53: Transferência | G53: Fundo de Juros | H53: Forte Securitizadora S/A | I53: 12.979.898/0001-70 | J53: 341 | K53: Itaú Unibanco S.A. | L53: 0393 | M53: 28245-4 | T53: 0
B54: Transferência | G54: Fundo de Concessão | H54: Forte Securitizadora S/A | I54: 12.979.898/0001-70 | J54: 341 | K54: Itaú Unibanco S.A. | L54: 0393 | M54: 28245-4 | T54: 0
B55: Transferência | G55: Fundo de Despesa | H55: Forte Securitizadora S/A | I55: 12.979.898/0001-70 | J55: 341 | K55: Itaú Unibanco S.A. | L55: 0393 | M55: 28245-4 | T55: 0
B56: Transferência | G56: Fundo de Reserva | H56: Forte Securitizadora S/A | I56: 12.979.898/0001-70 | J56: 341 | K56: Itaú Unibanco S.A. | L56: 0393 | M56: 28245-4 | T56: 150138.99
B57: Transferência | G57: Fundo de Obra | H57: Forte Securitizadora S/A | I57: 12.979.898/0001-70 | J57: 341 | K57: Itaú Unibanco S.A. | L57: 0393 | M57: 28245-4 | T57: 1391807.891 | U57: Valor total Fundo de Obras = R$ 1.843.446,03
B58: Transferência | G58: Fundo Diverso 1 | H58: Forte Securitizadora S/A | I58: 12.979.898/0001-70 | J58: 341 | K58: Itaú Unibanco S.A. | L58: 0393 | M58: 28245-4 | T58: ='[2]Criar Mapa'!K36 -> 0
B59: Transferência | G59: Fundo Diverso 2 | H59: Forte Securitizadora S/A | I59: 12.979.898/0001-70 | J59: 341 | K59: Itaú Unibanco S.A. | L59: 0393 | M59: 28245-4 | T59: ='[2]Criar Mapa'!K37 -> 0
B60: Aguardar Transferência | G60: Livre Destinação | H60: LAGOA QUENTE EMPREENDIMENTOS IMOBILIARIOS LTDA. | I60: 06.964.057/0001-97 | J60: 33 | K60: Banco Santander S.A. | L60: 1917 | M60: 13000694-9 | T60: =-SUM(-T14,T15:T39,T51:T57) -> 0
B61: Transferência | G61: Livre Destinação - Por Conta e Ordem | T61: ='[2]Criar Mapa'!K39 -> 0
B62: Total Dia | T62: =-SUM(-T14,T15:T39,T50:T61) -> 0 | Y62: Reembolso Forte
B64: Integralização | C64: 527 | D64: 2021-04-12 | E64: 1001.643715 | F64: 1200 | G64: Integralização | T64: =E64*F64 -> 1201972.458
B65: Integralização | C65: 528 | D65: 2021-04-12 | E65: 1001.837887 | F65: 800 | G65: Integralização | T65: =E65*F65 -> 801470.3098
B66: Integralização | C66: 529 | D66: 2021-04-12 | E66: 1000 | F66: 1050 | G66: Integralização | T66: 1050000
B67: Integralização | C67: 530 | D67: 2021-04-12 | E67: 1000 | F67: 700 | G67: Integralização | T67: 700000
B68: Integralização | C68: 0 | D68: 2021-04-09 | E68: 0 | F68: 0 | G68: Integralização | T68: 0
B69: Integralização | C69: 0 | D69: 2021-04-09 | E69: 0 | F69: 0 | G69: Integralização | T69: 0
B70: Integralização | C70: Total Dia | G70: Total Integralização | T70: =SUM(T64:T69) -> 3753442.768
B71: Transferência | G71: Fee Estruturação | H71: FORTE SECURITIZACAO E PARTICIPACOES LTDA | I71: 21.567.223/0001-05 | J71: 341 | K71: Itaú Unibanco S.A. | L71: 0869-8 | M71: 12663-1 | N71: N/A | O71: =(2%*T70)-40000 -> 35068.85536 | P71: 0.1115 | Q71: =O71/(1-P71) -> 39469.73029 | R71: 0.0615 | S71: =R71*Q71 -> 2427.388413 | T71: =Q71*(1-R71) -> 37042.34188
B72: Transferência | G72: Taxa de Sucesso | H72: FORTE SECURITIZACAO E PARTICIPACOES LTDA | I72: 21.567.223/0001-05 | J72: 341 | K72: Itaú Unibanco S.A. | L72: 0869-8 | M72: 12663-1 | N72: N/A | O72: =(2%*T70)-40000 -> 35068.85536 | P72: 0.1115 | Q72: =O72/(1-P72) -> 39469.73029 | R72: 0.0615 | S72: =R72*Q72 -> 2427.388413 | T72: =Q72*(1-R72) -> 37042.34188
B73: Transferência | G73: Comissão Firme | H73: TForte Participação Ltda | I73: 21.567.223/0001-05 | J73: 341 | K73: Itaú Unibanco S.A. | L73: 0869-8 | M73: 12663-1 | N73: N/A | O73: 0 | P73: 0.1115 | Q73: 0 | R73: 0.0615 | S73: 0 | T73: 0
B74: Transferência | G74: Originador | H74: - | I74: - | L74: - | M74: - | O74: 0 | P74: 0 | Q74: 0 | R74: 0 | S74: 0 | T74: 0
G75: Retenção de Impostos sobre NFs | T75: =SUM(T76:T76) -> 4854.776825
B76: Retenção de Impostos | G76: Imposto - FORTE SECURITIZACAO E PARTICIPACOES LTDA | H76: FORTE SECURITIZACAO E PARTICIPACOES LTDA | I76: 21.567.223/0001-05 | T76: =SUMIF($I$71:$I$72,I76,$S$71:$S$74) -> 4854.776825
B77: Transferência | G77: Reembolso Despesas | H77: Forte Securitizadora S/A | I77: 12.979.898/0001-70 | J77: 341 | K77: Itaú Unibanco S.A. | L77: 0869 | M77: 13447-8 | T77: 0
B78: Transferência | G78: Retenção de PMT | H78: Forte Securitizadora S/A | I78: 12.979.898/0001-70 | J78: 341 | K78: Itaú Unibanco S.A. | L78: 0393 | M78: 28245-4 | T78: 142747.49
B79: Aguardar Transferência | G79: Quitação de Dividas Tributárias | H79: Forte Securitizadora S/A | I79: 12.979.898/0001-70 | J79: 341 | K79: Itaú Unibanco S.A. | L79: 0393 | M79: 28245-4 | T79: =(1888100.24/3) -> 629366.7467 | U79: Transferência de R$ 9.806,26 referente a primeira parcela. Total R$ 1.888.100,24 (Dívidas Previdencia), sendo 1/3 pago na primeira tranche.
B80: Transferência | G80: Quitação de Divida Bradesco | H80: LAGOA QUENTE EMPREENDIMENTOS IMOBILIARIOS LTDA. | I80: 06.964.057/0001-97 | J80: 237 | K80: Banco Bradesco | L80: 1923 | M80: 51105-6 | T80: 652115.8 | U80: R$ 652.115,80 (Dívida Bradesco)
B81: Transferência | G81: Fundo de Concessão | H81: Forte Securitizadora S/A | I81: 12.979.898/0001-70 | J81: 341 | K81: Itaú Unibanco S.A. | L81: 0393 | M81: 28245-4 | T81: 0
B82: Transferência | G82: Fundo de Despesa | H82: Forte Securitizadora S/A | I82: 12.979.898/0001-70 | J82: 341 | K82: Itaú Unibanco S.A. | L82: 0393 | M82: 28245-4 | T82: 0
B83: Transferência | G83: Fundo de Reserva | H83: Forte Securitizadora S/A | I83: 12.979.898/0001-70 | J83: 341 | K83: Itaú Unibanco S.A. | L83: 0393 | M83: 28245-4 | T83: 281284.2
B84: Transferência | G84: Fundo de Obra | H84: Forte Securitizadora S/A | I84: 12.979.898/0001-70 | J84: 341 | K84: Itaú Unibanco S.A. | L84: 0393 | M84: 28245-4 | T84: =1843446.03-T57 -> 451638.1391 | U84: Valor total Fundo de Obras = R$ 1.843.446,03
B85: Transferência | G85: Fundo Diverso 1 | H85: Forte Securitizadora S/A | I85: 12.979.898/0001-70 | J85: 341 | K85: Itaú Unibanco S.A. | L85: 0393 | M85: 28245-4 | T85: 0
B86: Transferência | G86: Fundo Diverso 2 | H86: Forte Securitizadora S/A | I86: 12.979.898/0001-70 | J86: 341 | K86: Itaú Unibanco S.A. | L86: 0393 | M86: 28245-4 | T86: 0
B87: Transferência | G87: Livre Destinação | H87: LAGOA QUENTE EMPREENDIMENTOS IMOBILIARIOS LTDA. | I87: 06.964.057/0001-97 | J87: 33 | K87: Banco Santander S.A. | L87: 1917 | M87: 13000694-9 | T87: =1888100.24-T79 -> 1258733.493
B88: Transferência | G88: Livre Destinação | H88: LAGOA QUENTE EMPREENDIMENTOS IMOBILIARIOS LTDA. | I88: 06.964.057/0001-97 | J88: 33 | K88: Banco Santander S.A. | L88: 1917 | M88: 13000694-9 | T88: =-SUM(-T70,T71:T75,T78:T87) -> 258617.4384
B89: Transferência | G89: Livre Destinação - Por Conta e Ordem | T89: 0
B90: Total Dia | T90: =-SUM(-T70,T71:T75,T77:T89) -> 0 | Y90: Reembolso Forte
B92: Integralização | C92: 531 | D92: 2021-07-21 | E92: 1000 | F92: 600 | G92: Integralização | T92: =E92*F92 -> 600000
B93: Integralização | C93: Total Dia | G93: Total Integralização | T93: =SUM(T92:T92) -> 600000
B94: Transferência | G94: Fee Estruturação | H94: FORTE SECURITIZACAO E PARTICIPACOES LTDA | I94: 21.567.223/0001-05 | J94: 341 | K94: Itaú Unibanco S.A. | L94: 0869-8 | M94: 12663-1 | N94: N/A | O94: =(2%*T93) -> 12000 | P94: 0.1115 | Q94: =O94/(1-P94) -> 13505.90884 | R94: 0.0615 | S94: =R94*Q94 -> 830.6133934 | T94: =Q94*(1-R94) -> 12675.29544
B95: Transferência | G95: Taxa de Sucesso | H95: FORTE SECURITIZACAO E PARTICIPACOES LTDA | I95: 21.567.223/0001-05 | J95: 341 | K95: Itaú Unibanco S.A. | L95: 0869-8 | M95: 12663-1 | N95: N/A | O95: =(2%*T93) -> 12000 | P95: 0.1115 | Q95: =O95/(1-P95) -> 13505.90884 | R95: 0.0615 | S95: =R95*Q95 -> 830.6133934 | T95: =Q95*(1-R95) -> 12675.29544
G96: Retenção de Impostos sobre NFs | T96: =SUM(T97:T97) -> 1661.226787
B97: Retenção de Impostos | G97: Imposto - FORTE SECURITIZACAO E PARTICIPACOES LTDA | H97: FORTE SECURITIZACAO E PARTICIPACOES LTDA | I97: 21.567.223/0001-05 | T97: =+SUM(S94:S95) -> 1661.226787
B98: Transferência | G98: Reembolso Despesas | H98: Forte Securitizadora S/A | I98: 12.979.898/0001-70 | J98: 341 | K98: Itaú Unibanco S.A. | L98: 0869 | M98: 13447-8 | T98: 0
B99: Transferência | G99: Retenção de PMT | H99: Forte Securitizadora S/A | I99: 12.979.898/0001-70 | J99: 341 | K99: Itaú Unibanco S.A. | L99: 0393 | M99: 28245-4 | T99: 20809.56
B100: Aguardar Transferência | G100: Quitação de Dividas Tributárias | H100: Forte Securitizadora S/A | I100: 12.979.898/0001-70 | J100: 341 | K100: Itaú Unibanco S.A. | L100: 0393 | M100: 28245-4 | T100: =+((18463.17+1147783.56)/2)*0.6-530.88 -> 349343.139 | U100: 60% de 1/2 do remanescente da dívida tributária (-) Retenção disponível de R$ 530,88.
B101: Transferência | G101: Fundo de Reserva | H101: Forte Securitizadora S/A | I101: 12.979.898/0001-70 | J101: 341 | K101: Itaú Unibanco S.A. | L101: 0393 | M101: 28245-4 | T101: 41403.12
B102: Transferência | G102: Livre Destinação | H102: LAGOA QUENTE EMPREENDIMENTOS IMOBILIARIOS LTDA. | I102: 06.964.057/0001-97 | J102: 33 | K102: Banco Santander S.A. | L102: 1917 | M102: 13000694-9 | T102: =-SUM(-T93,T94:T96,T99:T101) -> 161432.3633
B103: Transferência | G103: Livre Destinação - Por Conta e Ordem | T103: 0
B104: Total Dia | T104: =-SUM(-T93,T94:T96,T98:T103) -> 0
B107: Integralização | C107: 532 | D107: 2021-07-22 | E107: 1000 | F107: 400 | G107: Integralização | T107: =E107*F107 -> 400000
B108: Integralização | C108: Total Dia | G108: Total Integralização | T108: =SUM(T107:T107) -> 400000
B109: Transferência | G109: Fee Estruturação | H109: FORTE SECURITIZACAO E PARTICIPACOES LTDA | I109: 21.567.223/0001-05 | J109: 341 | K109: Itaú Unibanco S.A. | L109: 0869-8 | M109: 12663-1 | N109: N/A | O109: =(2%*T108) -> 8000 | P109: 0.1115 | Q109: =O109/(1-P109) -> 9003.939223 | R109: 0.0615 | S109: =R109*Q109 -> 553.7422622 | T109: =Q109*(1-R109) -> 8450.196961
B110: Transferência | G110: Taxa de Sucesso | H110: FORTE SECURITIZACAO E PARTICIPACOES LTDA | I110: 21.567.223/0001-05 | J110: 341 | K110: Itaú Unibanco S.A. | L110: 0869-8 | M110: 12663-1 | N110: N/A | O110: =(2%*T108) -> 8000 | P110: 0.1115 | Q110: =O110/(1-P110) -> 9003.939223 | R110: 0.0615 | S110: =R110*Q110 -> 553.7422622 | T110: =Q110*(1-R110) -> 8450.196961
G111: Retenção de Impostos sobre NFs | T111: =SUM(T112:T112) -> 1107.484524
B112: Retenção de Impostos | G112: Imposto - FORTE SECURITIZACAO E PARTICIPACOES LTDA | H112: FORTE SECURITIZACAO E PARTICIPACOES LTDA | I112: 21.567.223/0001-05 | T112: =+SUM(S109:S110) -> 1107.484524
B113: Transferência | G113: Reembolso Despesas | H113: Forte Securitizadora S/A | I113: 12.979.898/0001-70 | J113: 341 | K113: Itaú Unibanco S.A. | L113: 0869 | M113: 13447-8 | T113: 0
B114: Transferência | G114: Retenção de PMT | H114: Forte Securitizadora S/A | I114: 12.979.898/0001-70 | J114: 341 | K114: Itaú Unibanco S.A. | L114: 0393 | M114: 28245-4 | T114: 15064.47
B115: Aguardar Transferência | G115: Quitação de Dividas Tributárias | H115: Forte Securitizadora S/A | I115: 12.979.898/0001-70 | J115: 341 | K115: Itaú Unibanco S.A. | L115: 0393 | M115: 28245-4 | T115: 264212.846 | U115: Diferença para completar 50% da retenção da divida na 3ª tranche
B116: Transferência | G116: Fundo de Reserva | H116: Forte Securitizadora S/A | I116: 12.979.898/0001-70 | J116: 341 | K116: Itaú Unibanco S.A. | L116: 0393 | M116: 28245-4 | T116: 30271.72
B117: Transferência | G117: Livre Destinação | H117: LAGOA QUENTE EMPREENDIMENTOS IMOBILIARIOS LTDA. | I117: 06.964.057/0001-97 | J117: 33 | K117: Banco Santander S.A. | L117: 1917 | M117: 13000694-9 | T117: =-SUM(-T108,T109:T111,T114:T116) -> 72443.08555
B118: Transferência | G118: Livre Destinação - Por Conta e Ordem | T118: 0
B119: Total Dia | T119: =-SUM(-T108,T109:T111,T113:T118) -> 0
T128: Check Impostos | U128: =ROUND(T39,2)=ROUND(SUM(S14:S62),2) -> TRUE
T130: 0
H135: Forte Securitizadora S.A.
